lending/lending_fUSD_20260124
["ID","MTS","AMOUNT","RATE_DAILY","PERIOD"]
[403179787,1769249444429,-500.0,0.00017973,2]
[403179788,1769249444438,-390.53635771,0.00017973,2]
[403179789,1769249444447,-502.11835798,0.00017973,2]
[403179790,1769249444460,-500.0,0.00017973,2]
[403179791,1769249444470,-500.43979477,0.00017973,2]
[403179792,1769249444479,-500.0,0.00017973,2]
[403179793,1769249444488,-500.0,0.00017973,2]
[403179794,1769249444499,-150.0,0.00017973,2]
[403179795,1769249444508,-500.0,0.00017973,2]
[403179796,1769249444517,-502.21918838,0.00017973,2]
[403179797,1769249444527,-500.0,0.00017973,2]
[403179798,1769249444536,-165.80280518,0.00017973,2]
[403179799,1769249444545,-240.81706826,0.00017973,2]
[403179800,1769249444555,-193.25248034,0.00017973,2]
[403179801,1769249444564,-500.0,0.00017973,2]
[403179802,1769249444573,-150.0,0.00017973,2]
[403179803,1769249444582,-1000.0,0.00017982,2]
[403179804,1769249444591,-500.0,0.00017982,2]
[403179805,1769249444600,-200.0,0.00017983,2]
[403179806,1769249444609,-214.96623226,0.0001799,2]
[403179807,1769249444618,-214.96623226,0.0001799,2]
[403179808,1769249444627,-150.0,0.00017993,2]
[403179809,1769249444637,-151.0,0.00017997,2]
[403179810,1769249444646,-30793.2858117,0.00017998,2]
[403179811,1769249444655,-6769.2689297,0.00017998,2]
[403179812,1769249444664,-1491.2493727,0.00017998,2]
[403179813,1769249444674,-2351.6510807,0.00017998,2]
[403179814,1769249444683,-7232.4971356,0.00017998,2]
[403179815,1769249444692,-249.63829755,0.00017999,2]
[403179816,1769249444701,-1050.88046112,0.00017999,5]
[403179817,1769249444710,-1050.88046112,0.00017999,5]
[403179818,1769249444720,-500.0,0.00017999,2]
[403179819,1769249444729,-500.0,0.00017999,2]
[403179820,1769249444738,-500.0,0.00017999,2]
[403179821,1769249444747,-500.0,0.00017999,2]
[403179822,1769249444756,-500.0,0.00017999,2]
[403179823,1769249444766,-500.0,0.00017999,2]
[403179824,1769249444775,-500.0,0.00017999,2]
[403179825,1769249444784,-500.0,0.00017999,2]
[403179826,1769249444793,-500.0,0.00017999,2]
[403179827,1769249444802,-500.0,0.00017999,2]
[403179828,1769249444811,-500.0,0.00017999,2]
[403179829,1769249444820,-279.88786279,0.00017999,2]
[403179830,1769249444829,-500.0,0.00017999,2]
[403179831,1769249444839,-500.0,0.00017999,2]
[403179832,1769249444847,-500.0,0.00017999,2]
[403179833,1769249444856,-500.0,0.00017999,2]
[403179834,1769249444865,-500.0,0.00017999,2]
[403179835,1769249444875,-500.0,0.00017999,2]
[403179836,1769249444884,-500.0,0.00017999,2]
[403179837,1769249444893,-311.60217601,0.00017999,2]
[403179838,1769249444906,-300.0,0.00017999,2]
[403179839,1769249444916,-300.0,0.00017999,2]
[403179840,1769249444926,-499.8,0.00018,2]
[403179841,1769249444935,-500.0,0.00018,2]
[403179842,1769249444945,-500.0,0.00018,2]
[403179843,1769249444955,-500.0,0.00018,2]
[403179844,1769249444964,-500.0,0.00018,2]
[403179845,1769249444973,-4209222.84916772,0.00018,2]
[403179846,1769249444983,-1714305.16037353,0.00018,2]
[403179847,1769249444992,-638725.21023663,0.00018,2]
[403179848,1769249445065,66.77642937,0.00012783,2]
[403179849,1769249445088,433.22357063,0.00012783,2]
[403179850,1769249445153,224.53967246,0.00012783,2]
[403179851,1769249445290,339.65539364,0.00012783,2]
[403179852,1769249445326,414.03013092,0.00012783,2]
[403179853,1769249445376,500.0,0.00012783,2]
[403179854,1769249445442,500.0,0.00012783,2]
[403179855,1769249445785,1175.85749702,0.00012782,2]
[403179857,1769249446588,-1349.23357057,0.00013351,2]
[403179859,1769249446598,-1074.81642943,0.00015502,2]
[403179869,1769249448053,349.51326546,0.00012783,2]
[403179870,1769249450163,500.0,0.00012783,2]
[403179871,1769249450234,500.0,0.00012783,2]
[403179872,1769249450313,500.0,0.00012783,2]
[403179873,1769249450361,500.0,0.00012783,2]
[403179874,1769249450415,164.38075313,0.00012783,2]
[403179875,1769249467296,157.17777072,0.00012783,2]
[403179876,1769249467337,500.0,0.00012783,2]
[403179877,1769249467386,500.0,0.00012783,2]
[403179878,1769249467446,500.0,0.00012783,2]
[403179879,1769249467491,500.0,0.00012783,2]
[403179880,1769249492380,1741.63194602,0.00012528,2]
[403179881,1769249492403,644.80105398,0.00012528,2]
[403179882,1769249492439,194.082,0.00012528,2]
[403179883,1769249522314,150.0,0.00012783,2]
[403179884,1769249528401,300.0,0.00012783,2]
[403179885,1769249540464,1050.88046112,0.00012783,3]
[403179886,1769249547522,500.0,0.00012783,2]
[403179887,1769249547575,500.0,0.00012783,2]
[403179888,1769249547625,500.0,0.00012783,2]
[403179889,1769249547683,500.0,0.00012783,2]
[403179890,1769249547741,565.17996916,0.00012783,2]
[403179891,1769249586861,500.0,0.00012684,2]
[403179892,1769249593001,5645.94697686,0.00012684,2]
[403179893,1769249593024,10000.01,0.00012684,2]
[403179894,1769249593047,1369.77262314,0.00012684,2]
[403179895,1769249599839,898.74416425,0.000127,2]
[403179896,1769249639688,6404.05636299,0.000127,2]
[403179897,1769249701449,1200.0,0.00012783,2]
[403179898,1769249702432,150.0,0.00012783,2]
[403179899,1769249703195,289.82109165,0.00012783,2]
[403179900,1769249707591,525.50674692,0.00012783,2]
[403179901,1769249741435,531.88163419,0.00012774,2]
[403179902,1769249741458,4680.57022108,0.00012774,2]
[403179903,1769249742935,500.0,0.00012684,2]
[403179904,1769249754978,599.16277616,0.000127,2]
[403179905,1769249761265,300.0,0.00012783,2]
[403179906,1769249765636,174.20823838,0.000127,2]
[403179907,1769249799803,2500.0,0.00012684,2]
[403179908,1769249825431,202.57409006,0.00012784,2]
[403179909,1769249846573,151.0,0.00012784,2]
[403179910,1769249847182,151.0,0.00012784,2]
[403179911,1769249847805,151.0,0.00012784,2]
[403179912,1769249848466,151.0,0.00012784,2]
[403179913,1769249849092,151.0,0.00012784,2]
[403179914,1769249849683,151.0,0.00012784,2]
[403179915,1769249850304,137.49467432,0.00012784,2]
[403179916,1769249850328,13.50532568,0.00012784,2]
[403179917,1769249850921,151.0,0.00012784,2]
[403179918,1769249851589,151.0,0.00012784,2]
[403179919,1769249852193,151.0,0.00012784,2]
[403179920,1769249852785,151.0,0.00012784,2]
[403179921,1769249855920,1933.41074756,0.00012692,2]
[403179922,1769249864753,500.0,0.00012784,2]
[403179923,1769249865373,500.0,0.00012784,2]
[403179924,1769249866494,500.0,0.00012784,2]
[403179925,1769249866606,500.0,0.00012784,2]
[403179926,1769249867203,500.0,0.00012784,2]
[403179927,1769249867811,500.0,0.00012784,2]
[403179928,1769249868401,500.0,0.00012784,2]
[403179929,1769249869011,500.0,0.00012784,2]
[403179930,1769249869643,500.0,0.00012784,2]
[403179931,1769249870234,500.0,0.00012784,2]
[403179932,1769249870839,500.0,0.00012784,2]
[403179933,1769249882948,150.0,0.00012783,2]
[403179934,1769249894122,198.9795,0.00012684,2]
[403179936,1769249932208,399.44185078,0.00012692,2]
[403179937,1769249934491,-9702.84929162,0.00012784,2]
[403179938,1769249934508,-10000.01,0.00012784,2]
[403179939,1769249938706,-10000.01,0.00012784,2]
[403179940,1769249938818,-10000.01,0.00012784,2]
[403179941,1769249938937,-10000.01,0.00012784,2]
[403179942,1769249939066,-10000.01,0.00012784,2]
[403179943,1769249939158,-10000.01,0.00012784,2]
[403179944,1769249939424,-10000.01,0.00012784,2]
[403179945,1769249939557,-10000.01,0.00012784,2]
[403179946,1769249939687,-10000.01,0.00012784,2]
[403179947,1769249941720,-300.0,0.00012783,2]
[403179948,1769249941753,-9400.01,0.00012784,2]
[403179949,1769249955146,-309.21215438,0.00012684,2]
[403179950,1769249958314,-161.95317261,0.00012684,2]
[403179951,1769249962737,-170.56030923,0.00012684,2]
[403179952,1769249964913,-156.89951446,0.00012684,2]
[403179953,1769249966553,-158.59261057,0.00012684,2]
[403179954,1769249969811,-196.2213971,0.00012684,2]
[403179955,1769249972778,-231.04,0.00012684,2]
[403179956,1769249974358,-217.37327442,0.00012684,2]
[403179957,1769249976954,-236.8865675,0.00012684,2]
[403179958,1769249981674,-339.25564708,0.00012684,2]
[403179959,1769249983505,-216.85110539,0.00012684,2]
[403179960,1769249996869,1003.0,0.00014,3]
[403179961,1769250015476,-105.15424726,0.00012684,2]
[403179962,1769250015498,-78.80091816,0.00012684,2]
[403179963,1769250017297,1002.77,0.00014,4]
[403179964,1769250029587,-175.19908184,0.00012684,2]
[403179965,1769250030150,-272.08313769,0.00012692,2]
[403179966,1769250033275,-182.64501787,0.00012692,2]
[403179967,1769250035870,-216.00725695,0.00012692,2]
[403179968,1769250037210,-4907.09468581,0.00012692,2]
[403179969,1769250037253,-185.82062838,0.00012692,2]
[403179971,1769250087428,1056.8328,0.00012684,2]
[403179972,1769250089322,281.42662998,0.00012692,2]
[403179973,1769250092386,2643.848,0.00012528,2]
[403179974,1769250092447,203.786,0.00012528,2]
[403179975,1769250093502,5442.47531326,0.00012684,2]
[403179976,1769250093523,10000.01,0.00012684,2]
[403179977,1769250093543,10000.01,0.00012684,2]
[403179978,1769250093563,10000.01,0.00012684,2]
[403179979,1769250093584,10000.01,0.00012684,2]
[403179980,1769250093605,10000.01,0.00012684,2]
[403179981,1769250093627,10000.01,0.00012684,2]
[403179982,1769250093647,10000.01,0.00012684,2]
[403179983,1769250093671,2345.78898674,0.00012684,2]
[403179984,1769250100336,2500.0,0.00012684,2]
[403179991,1769250211575,150.0,0.00012,2]
[403179992,1769250251286,-187.61775332,0.00012684,2]
[403179993,1769250255441,712.2047,0.00012684,2]
[403179994,1769250281632,-1740.06967275,0.00012684,2]
[403179995,1769250361270,300.0,0.00012773,2]
[403179996,1769250400351,187.61775331,0.00012684,2]
[403179997,1769250414514,5187.28565403,0.00012684,2]
[403179998,1769250421963,300.0,0.00012773,2]
[403179999,1769250429243,300.0,0.00012773,2]
[403180001,1769250469403,196.03,0.00011494,2]
[403180002,1769250481332,300.0,0.00012773,2]
[403180003,1769250499255,3229.07659266,0.00012682,2]
[403180004,1769250499284,10000.01,0.00012682,2]
[403180005,1769250499311,10000.01,0.00012682,2]
[403180006,1769250499337,10000.01,0.00012682,2]
[403180007,1769250499364,10000.01,0.00012682,2]
[403180008,1769250499390,10000.01,0.00012682,2]
[403180009,1769250499414,10000.01,0.00012682,2]
[403180010,1769250499440,10000.01,0.00012682,2]
[403180011,1769250499464,10000.01,0.00012682,2]
[403180012,1769250504523,-253.16067858,0.00012682,2]
[403180013,1769250505987,-222.33233815,0.00012682,2]
[403180014,1769250509508,-155.37336821,0.00012682,2]
[403180015,1769250512508,-162.30962503,0.00012682,2]
[403180016,1769250514461,-239.61449792,0.00012682,2]
[403180017,1769250517988,-190.32320089,0.00012682,2]
[403180018,1769250519873,-692.79755332,0.00012682,2]
[403180019,1769250522661,-300.0,0.00012682,2]
[403180020,1769250524083,-165.38514202,0.00012682,2]
[403180021,1769250527804,-252.25343531,0.00012682,2]
[403180022,1769250529891,-197.90637956,0.00012682,2]
[403180023,1769250532045,-289.93340482,0.00012682,2]
[403180024,1769250535322,-228.99440266,0.00012682,2]
[403180025,1769250537996,-302.09362044,0.00012682,2]
[403180026,1769250541195,300.0,0.00012681,2]
[403180027,1769250542135,-204.24807551,0.00012682,2]
[403180028,1769250545112,204.97504573,0.00012584,2]
[403180029,1769250545527,-168.51961922,0.00012682,2]
[403180032,1769250601266,300.0,0.00012681,2]
[403180033,1769250601302,300.0,0.00012681,2]
[403180034,1769250601339,1200.0,0.00012681,2]
[403180035,1769250602947,150.0,0.00012681,2]
[403180036,1769250607236,300.0,0.00012681,2]
[403180037,1769250624977,359.27652502,0.00012681,2]
[403180038,1769250625249,190.61163216,0.00012681,2]
[403180039,1769250628092,500.0,0.00012681,2]
[403180040,1769250628140,500.0,0.00012681,2]
[403180041,1769250628178,500.0,0.00012681,2]
[403180042,1769250628217,304.41790839,0.00012681,2]
[403180043,1769250628256,647.55449987,0.00012681,2]
[403180044,1769250628296,500.0,0.00012681,2]
[403180045,1769250628331,205.71905428,0.00012681,2]
[403180046,1769250628382,505.17359471,0.00012681,2]
[403180047,1769250628427,500.0,0.00012681,2]
[403180048,1769250628462,500.0,0.00012681,2]
[403180049,1769250628510,500.0,0.00012681,2]
[403180050,1769250628552,500.0,0.00012681,2]
[403180051,1769250628593,500.0,0.00012681,2]
[403180052,1769250628639,500.0,0.00012681,2]
[403180053,1769250628693,32.28173984,0.00012681,2]
[403180054,1769250628714,130.33959604,0.00012681,2]
[403180055,1769250628754,500.0,0.00012681,2]
[403180056,1769250628818,500.0,0.00012681,2]
[403180057,1769250628869,373.20391951,0.00012681,2]
[403180058,1769250628910,500.0,0.00012681,2]
[403180059,1769250628986,500.0,0.00012681,2]
[403180060,1769250629059,500.0,0.00012681,2]
[403180061,1769250629155,500.0,0.00012681,2]
[403180062,1769250629243,500.0,0.00012681,2]
[403180063,1769250629319,500.0,0.00012681,2]
[403180064,1769250629415,500.0,0.00012681,2]
[403180065,1769250629488,500.0,0.00012681,2]
[403180066,1769250629555,500.0,0.00012681,2]
[403180067,1769250629669,500.0,0.00012681,2]
[403180068,1769250629760,462.39502435,0.00012681,2]
[403180069,1769250629818,500.0,0.00012681,2]
[403180070,1769250629871,400.30070417,0.00012681,2]
[403180071,1769250629942,500.0,0.00012681,2]
[403180072,1769250630002,500.0,0.00012681,2]
[403180073,1769250630055,500.0,0.00012681,2]
[403180074,1769250630107,500.0,0.00012681,2]
[403180075,1769250630158,133.77075593,0.00012681,2]
[403180076,1769250630190,366.22924407,0.00012681,2]
[403180077,1769250630241,500.0,0.00012681,2]
[403180078,1769250630292,500.0,0.00012681,2]
[403180079,1769250630342,500.0,0.00012681,2]
[403180080,1769250630400,500.0,0.00012681,2]
[403180081,1769250630457,500.0,0.00012681,2]
[403180082,1769250630506,500.0,0.00012681,2]
[403180083,1769250630571,500.0,0.00012681,2]
[403180084,1769250630617,393.59453878,0.00012681,2]
[403180085,1769250630665,500.0,0.00012681,2]
[403180086,1769250630710,500.0,0.00012681,2]
[403180087,1769250630759,500.0,0.00012681,2]
[403180088,1769250630810,500.0,0.00012681,2]
[403180089,1769250630874,500.0,0.00012681,2]
[403180090,1769250630922,500.0,0.00012681,2]
[403180091,1769250630977,500.0,0.00012681,2]
[403180092,1769250631046,500.0,0.00012681,2]
[403180093,1769250631094,500.0,0.00012681,2]
[403180094,1769250631148,500.0,0.00012681,2]
[403180096,1769250631220,500.0,0.00012681,2]
[403180106,1769250631279,240.18621715,0.00012681,2]
[403180108,1769250631307,259.81378285,0.00012681,2]
[403180109,1769250631350,500.0,0.00012681,2]
[403180110,1769250631424,500.0,0.00012681,2]
[403180111,1769250631524,500.0,0.00012681,2]
[403180125,1769250631992,500.0,0.00012681,2]
[403180126,1769250632073,500.0,0.00012681,2]
[403180127,1769250632108,500.0,0.00012681,2]
[403180128,1769250632150,500.0,0.00012681,2]
[403180129,1769250632208,500.0,0.00012681,2]
[403180130,1769250632272,-729.05658628,0.00012682,2]
[403180131,1769250632295,-559.2491887,0.00012682,2]
[403180132,1769250632306,-1199.16049217,0.00012682,2]
[403180133,1769250632324,-1171.15387376,0.00012682,2]
[403180134,1769250632335,-47687.26397978,0.00012682,2]
[403180135,1769250632346,-544.02,0.00012682,2]
[403180136,1769250632357,-437.436765,0.00012682,2]
[403180137,1769250632369,-1727.40440094,0.00012682,2]
[403180138,1769250632380,-1007.91535398,0.00012682,2]
[403180139,1769250632395,-430.57999999,0.00012682,2]
[403180140,1769250632407,-837.55599896,0.00012682,2]
[403180141,1769250632423,-2256.44017765,0.00012682,2]
[403180142,1769250632438,-3007.1599678,0.00012682,2]
[403180143,1769250635442,945.051,0.00012582,2]
[403180151,1769250637416,-1020.29583807,0.00012682,2]
[403180152,1769250637471,-2301.30594,0.00012682,2]
[403180153,1769250637526,-12221.1051374,0.00012682,2]
[403180154,1769250637632,-305.96311241,0.00012682,2]
[403180155,1769250637643,-815.23606977,0.00012682,2]
[403180159,1769250639527,-834487.29518304,0.00012682,2]
[403180160,1769250639536,-250.0,0.00012683,2]
[403180161,1769250639548,-429.9377,0.00012684,2]
[403180162,1769250639557,-250.0,0.00012738,2]
[403180163,1769250639568,-1200.0,0.00012773,2]
[403180164,1769250639578,-19400.02,0.00012774,2]
[403180165,1769250639587,-500.0,0.00012776,2]
[403180166,1769250639596,-500.0,0.00012776,2]
[403180167,1769250639605,-500.0,0.00012776,2]
[403180168,1769250639614,-500.0,0.00012776,2]
[403180169,1769250639623,-334.33697893,0.00012776,2]
[403180170,1769250639633,-500.0,0.00012776,2]
[403180171,1769250639642,-500.0,0.00012776,2]
[403180172,1769250639651,-500.0,0.00012776,2]
[403180173,1769250639662,-500.0,0.00012776,2]
[403180174,1769250639672,-200.0,0.00012776,2]
[403180175,1769250639681,-500.0,0.00012776,2]
[403180176,1769250639690,-500.0,0.00012776,2]
[403180177,1769250639699,-170.26622743,0.00012776,2]
[403180178,1769250639708,-500.0,0.00012776,2]
[403180179,1769250639717,-500.0,0.00012776,2]
[403180180,1769250639727,-151.0,0.00012776,2]
[403180181,1769250639736,-151.0,0.00012776,2]
[403180182,1769250639745,-151.0,0.00012776,2]
[403180183,1769250639755,-151.0,0.00012776,2]
[403180184,1769250639764,-151.0,0.00012776,2]
[403180185,1769250639773,-151.0,0.00012776,2]
[403180186,1769250639783,-151.0,0.00012776,2]
[403180187,1769250639792,-151.0,0.00012776,2]
[403180188,1769250639801,-500.0,0.00012776,2]
[403180189,1769250639810,-151.0,0.00012776,2]
[403180190,1769250639819,-500.0,0.00012776,2]
[403180191,1769250639828,-151.0,0.00012776,2]
[403180192,1769250639838,-500.0,0.00012776,2]
[403180193,1769250639847,-151.0,0.00012776,2]
[403180194,1769250639856,-500.0,0.00012776,2]
[403180195,1769250639869,-151.0,0.00012776,2]
[403180196,1769250639878,-500.0,0.00012776,2]
[403180197,1769250639887,-151.0,0.00012776,2]
[403180198,1769250639896,-500.0,0.00012776,2]
[403180199,1769250639906,-151.0,0.00012776,2]
[403180200,1769250639914,-500.0,0.00012776,2]
[403180201,1769250639923,-151.0,0.00012776,2]
[403180202,1769250639933,-500.0,0.00012776,2]
[403180203,1769250639942,-151.0,0.00012776,2]
[403180204,1769250639952,-500.0,0.00012776,2]
[403180205,1769250639962,-151.0,0.00012776,2]
[403180206,1769250639971,-500.0,0.00012776,2]
[403180207,1769250639980,-151.0,0.00012776,2]
[403180208,1769250639993,-500.0,0.00012776,2]
[403180209,1769250640002,-151.0,0.00012776,2]
[403180210,1769250640011,-151.0,0.00012776,2]
[403180211,1769250640020,-200.0,0.00012776,2]
[403180212,1769250640030,-200.0,0.00012776,2]
[403180213,1769250640039,-151.0,0.00012776,2]
[403180214,1769250640048,-151.0,0.00012776,2]
[403180215,1769250640058,-151.0,0.00012776,2]
[403180216,1769250640069,-151.0,0.00012776,2]
[403180218,1769250640079,-151.0,0.00012776,2]
[403180219,1769250640087,-151.0,0.00012776,2]
[403180220,1769250640097,-151.0,0.00012776,2]
[403180221,1769250640106,-151.0,0.00012776,2]
[403180222,1769250640115,-151.0,0.00012776,2]
[403180223,1769250640124,-151.0,0.00012776,2]
[403180224,1769250640133,-151.0,0.00012776,2]
[403180225,1769250640142,-151.0,0.00012779,2]
[403180226,1769250640151,-500.0,0.00012784,2]
[403180227,1769250640160,-500.0,0.00012818,2]
[403180228,1769250640170,-1000.0,0.00012884,2]
[403180229,1769250640179,-1000.0,0.00012982,2]
[403180230,1769250640188,-500.0,0.00013058,2]
[403180231,1769250640197,-5187.28565398,0.00013264,2]
[403180232,1769250640207,-500.0,0.00013324,2]
[403180233,1769250640216,-200.0,0.00013324,2]
[403180234,1769250640225,-200.0,0.00013324,2]
[403180235,1769250640234,-500.0,0.00013698,2]
[403180236,1769250640243,-500.0,0.00013698,2]
[403180237,1769250640252,-500.0,0.00013698,2]
[403180238,1769250640260,-500.0,0.00013698,2]
[403180239,1769250640269,-500.0,0.00013698,2]
[403180240,1769250640279,-500.0,0.00013698,2]
[403180241,1769250640288,-500.0,0.00013698,2]
[403180242,1769250640297,-500.0,0.00013698,2]
[403180243,1769250640306,-250.0,0.00013699,2]
[403180244,1769250640315,-250.0,0.00013699,2]
[403180245,1769250640324,-250.0,0.00013699,2]
[403180246,1769250640333,-250.0,0.00013699,2]
[403180247,1769250640342,-250.0,0.00013699,2]
[403180248,1769250640351,-250.0,0.00013699,2]
[403180249,1769250640360,-250.0,0.00013699,2]
[403180250,1769250640369,-250.0,0.00013699,2]
[403180251,1769250640378,-500.0,0.00013699,2]
[403180252,1769250640387,-500.0,0.00013699,2]
[403180253,1769250640397,-500.0,0.00013699,2]
[403180254,1769250640406,-513.25535788,0.00013699,2]
[403180255,1769250640415,-500.0,0.00013699,2]
[403180256,1769250640424,-500.0,0.00013699,2]
[403180257,1769250640433,-500.0,0.00013699,2]
[403180258,1769250640442,-255.0,0.00013784,2]
[403180259,1769250640452,-338.31458895,0.00013829,2]
[403180260,1769250640462,-5187.28565398,0.00013843,2]
[403180261,1769250640473,-420.0,0.00013911,2]
[403180262,1769250640483,-420.0,0.00013911,2]
[403180263,1769250640493,-1680.0,0.00013949,2]
[403180264,1769250640502,-195.0,0.0001395,2]
[403180265,1769250640511,-250.0,0.0001395,2]
[403180266,1769250640521,-600.0,0.0001395,2]
[403180267,1769250640530,-600.0,0.0001395,2]
[403180268,1769250640540,-195.0,0.0001395,2]
[403180269,1769250640550,-300.0,0.0001395,2]
[403180270,1769250640559,-600.0,0.0001395,2]
[403180271,1769250640571,-195.0,0.00014051,2]
[403180272,1769250640579,-195.0,0.00014051,2]
[403180273,1769250640588,-600.0,0.00014051,2]
[403180274,1769250640598,-189.80681755,0.00014051,2]
[403180275,1769250640607,-166.35,0.00014051,2]
[403180276,1769250640616,-314.66,0.00014097,2]
[403180277,1769250640625,-9351.13,0.00014339,2]
[403180278,1769250640634,-5187.28565398,0.00014423,2]
[403180279,1769250640644,-200.0,0.00014491,2]
[403180280,1769250640655,-200.0,0.00014494,2]
[403180281,1769250640664,-151.0,0.00014617,2]
[403180282,1769250640674,-151.0,0.00014689,2]
[403180283,1769250640684,-232.0,0.00014989,2]
[403180284,1769250640696,-5187.28565398,0.00015002,2]
[403180285,1769250640706,-195.45,0.00015145,2]
[403180286,1769250640716,-587.0,0.00015261,2]
[403180287,1769250640727,-150.0,0.00015265,2]
[403180288,1769250640737,-174.20823838,0.000153,2]
[403180289,1769250640747,-222.33,0.00015309,2]
[403180290,1769250640757,-2351.0,0.00015344,2]
[403180291,1769250640766,-166.35,0.00015456,2]
[403180292,1769250640775,-200.0,0.00015502,2]
[403180293,1769250640786,-233.87772424,0.00015515,2]
[403180294,1769250640795,-5187.28565398,0.00015582,2]
[403180295,1769250640804,-500.0,0.00015587,2]
[403180296,1769250640815,-200.0,0.00015657,2]
[403180297,1769250640827,-500.0,0.00015873,2]
[403180298,1769250640837,-500.0,0.00015873,2]
[403180299,1769250640846,-500.0,0.00015873,2]
[403180300,1769250640857,-500.0,0.00015873,2]
[403180301,1769250640867,-500.0,0.00015873,2]
[403180302,1769250640878,-500.0,0.00015873,2]
[403180303,1769250640889,-500.0,0.00015873,2]
[403180304,1769250640899,-500.0,0.00015873,2]
[403180305,1769250640909,-502.29619989,0.00015873,2]
[403180306,1769250640920,-500.0,0.00015873,2]
[403180307,1769250640930,-500.0,0.00015873,2]
[403180308,1769250640939,-500.0,0.00015873,2]
[403180309,1769250640948,-500.0,0.00015873,2]
[403180310,1769250640957,-501.6930998,0.00015873,2]
[403180311,1769250640966,-500.62373681,0.00015873,2]
[403180312,1769250640976,-313.95514595,0.00015873,2]
[403180313,1769250640985,-500.0,0.00015873,2]
[403180314,1769250640999,-500.0,0.00015873,2]
[403180315,1769250641008,-545.47745705,0.00015873,2]
[403180316,1769250641017,-500.0,0.00015873,2]
[403180317,1769250641026,-501.00143477,0.00015873,2]
[403180318,1769250641036,-500.0,0.00015873,2]
[403180319,1769250641045,-500.0,0.00015873,2]
[403180320,1769250641054,-166.08381347,0.00015873,2]
[403180321,1769250641065,-501.35548304,0.00015873,2]
[403180322,1769250641076,-500.0,0.00015873,2]
[403180323,1769250641085,-500.0,0.00015873,2]
[403180324,1769250641095,-501.64063566,0.00015873,2]
[403180325,1769250641104,-1031.88,0.00015873,2]
[403180326,1769250641113,-1408.0,0.00015902,2]
[403180327,1769250641122,-4830.0,0.00015902,2]
[403180328,1769250641132,-2442.0,0.00015902,2]
[403180329,1769250641140,-635.76080296,0.0001596,2]
[403180330,1769250641150,-184.0,0.00016023,2]
[403180331,1769250641159,-1269.0,0.00016023,2]
[403180332,1769250641167,-1203.0,0.00016023,2]
[403180333,1769250641176,-916.0,0.00016023,2]
[403180334,1769250641185,-1031.88,0.00016147,2]
[403180335,1769250641194,-5187.28565398,0.00016161,2]
[403180336,1769250641203,-861.24,0.0001624,2]
[403180337,1769250641213,-151.41,0.00016276,2]
[403180338,1769250641221,-580.49,0.00016279,2]
[403180339,1769250641230,-500.0,0.00016356,2]
[403180340,1769250641239,-500.0,0.00016356,2]
[403180341,1769250641248,-1001.80734067,0.00016421,2]
[403180342,1769250641257,-170.62003131,0.00016421,2]
[403180343,1769250641267,-292.86388149,0.00016421,2]